bitfinex/quotes_BTCUSD_20241004
["timestamp","ask_amount","ask_price","bid_price","bid_amount"]
[1728049022414,0.000819,61891.0,61890.0,0.268576]
[1728049022666,0.000819,61891.0,61890.0,0.270576]
[1728049022905,0.000819,61891.0,61890.0,0.281576]
[1728049023208,0.000819,61891.0,61890.0,0.009]
[1728049023375,0.000819,61891.0,61890.0,0.170576]
[1728049023622,0.000819,61891.0,61890.0,0.178576]
[1728049024111,0.000819,61891.0,61890.0,0.017]
[1728049024438,0.205602,61891.0,61864.0,0.24212483]
[1728049024652,0.205602,61891.0,61880.0,0.24197646]
[1728049024653,0.1616,61881.0,61880.0,0.24197646]
[1728049024876,0.161632,61869.0,61851.0,0.75201706]
[1728049025107,0.12148855,61881.0,61851.0,0.75201706]
[1728049025108,0.16163,61870.0,61865.0,0.161641]
[1728049025413,0.161629,61871.0,61865.0,0.323284]
[1728049025619,0.161629,61871.0,61866.0,0.161638]
[1728049025620,0.02852108,61871.0,61866.0,0.161638]
[1728049025870,0.01413211,61870.0,61864.0,0.001]
[1728049026128,0.01413277,61870.0,61861.0,0.001638]
[1728049026379,0.01413277,61870.0,61865.0,0.001]
[1728049026380,0.003,61870.0,61865.0,0.001]
[1728049026601,0.02533982,61870.0,61869.0,0.161631]
[1728049026820,0.03333982,61870.0,61869.0,0.161631]
[1728049027451,0.03333982,61870.0,61865.0,0.001]
[1728049027452,0.22329395,61870.0,61865.0,0.001]
[1728049027622,0.20433894,61869.0,61865.0,0.001]
[1728049027875,0.17575555,61868.0,61865.0,0.001]
[1728049028126,0.02858639,61869.0,61861.0,0.005638]
[1728049028127,0.323285,61865.0,61861.0,0.005638]
[1728049028350,0.08860344,61869.0,61861.0,0.010638]
[1728049028351,0.0253408,61869.0,61861.0,0.010638]
[1728049028591,0.1869748,61869.0,61861.0,0.010638]
[1728049028949,0.1869748,61869.0,61848.0,0.24197646]
[1728049028950,0.323331,61856.0,61842.0,0.001638]
[1728049028954,0.28054574,61862.0,61844.0,0.24197646]
[1728049029129,0.161694,61845.0,61844.0,0.24197646]
[1728049029625,0.161694,61845.0,61842.0,0.001638]
[1728049029626,0.03947097,61845.0,61842.0,0.001638]
[1728049029823,0.01412084,61844.0,61842.0,0.001638]
[1728049030062,0.01412084,61844.0,61842.0,0.16334]
[1728049030244,0.03178811,61843.0,61842.0,0.001638]
[1728049030657,0.04592953,61843.0,61842.0,0.001638]
[1728049030854,0.04592953,61843.0,61842.0,0.002638]
[1728049031056,0.04592953,61843.0,61842.0,0.001638]
[1728049031206,0.01414142,61843.0,61842.0,0.001638]
[1728049031474,0.003,61845.0,61842.0,0.001638]
[1728049031475,0.003,61845.0,61844.0,0.161697]
[1728049031949,0.0424854,61845.0,61844.0,0.161697]
[1728049032184,0.02834869,61845.0,61842.0,0.001638]
[1728049032421,0.008,61843.0,61842.0,0.16434]
[1728049032651,0.02834869,61845.0,61844.0,0.161697]
[1728049032878,0.02834869,61845.0,61844.0,0.163697]
[1728049033128,0.02834869,61845.0,61844.0,0.002]
[1728049033356,0.02834869,61845.0,61844.0,0.161697]
[1728049033588,0.02834869,61845.0,61842.0,0.001638]
[1728049033855,0.02834869,61845.0,61844.0,0.161697]
[1728049034306,0.03234869,61845.0,61844.0,0.161697]
[1728049034568,0.02934869,61845.0,61844.0,0.161697]
[1728049034812,0.02934869,61845.0,61843.0,0.161699]
[1728049035066,0.161699,61843.0,61842.0,0.002638]
[1728049035295,0.19355248,61843.0,61842.0,0.002638]
[1728049035528,0.20769794,61843.0,61842.0,0.001638]
[1728049035765,0.20769794,61843.0,61842.0,0.16334]
[1728049035766,0.01414546,61843.0,61842.0,0.16334]
[1728049036045,0.02934869,61845.0,61842.0,0.001638]
[1728049036255,0.03527197,61844.0,61842.0,0.001638]
[1728049036569,0.03527197,61844.0,61843.0,0.161699]
[1728049036676,0.02734869,61845.0,61844.0,0.161697]
[1728049036906,0.02734869,61845.0,61844.0,0.16184537]
[1728049036907,0.02534869,61845.0,61844.0,0.16184537]
[1728049037160,0.02534869,61845.0,61842.0,0.325041]
[1728049037161,0.0569407,61845.0,61842.0,0.001638]
[1728049037398,0.161699,61843.0,61842.0,0.001638]
[1728049037634,0.03185348,61843.0,61842.0,0.002638]
[1728049037845,0.2323109,61843.0,61842.0,0.002638]
[1728049038074,0.2464527,61843.0,61842.0,0.001638]
[1728049038335,0.60779844,61843.0,61842.0,0.001638]
[1728049038575,0.73067722,61843.0,61842.0,0.001638]
[1728049038823,0.47313148,61843.0,61842.0,0.001638]
[1728049039101,0.161744,61826.0,61823.0,0.16175]
[1728049039308,0.28054574,61830.0,61819.0,0.323524]
[1728049039309,0.161743,61827.0,61819.0,0.323524]
[1728049039534,0.0340112,61827.0,61819.0,0.323522]
[1728049039784,0.79526363,61841.0,61830.0,0.00014837]
[1728049039785,0.47,61841.0,61830.0,0.00014837]
[1728049040033,0.21795842,61843.0,61836.0,0.16186637]
[1728049040034,0.24197646,61837.0,61836.0,0.16186637]
[1728049040519,0.24197646,61837.0,61832.0,0.323456]
[1728049040520,0.32342,61839.0,61832.0,0.323456]
[1728049040745,0.19448173,61838.0,61834.0,0.161723]
[1728049040983,0.19448173,61838.0,61819.0,0.00516434]
[1728049040984,0.323446,61834.0,61826.0,0.323487]
[1728049041232,0.161731,61831.0,61830.0,0.001]
[1728049041547,0.23366559,61831.0,61830.0,0.001]
[1728049041753,0.23366559,61831.0,61822.0,0.24197646]
[1728049041754,0.003,61827.0,61822.0,0.24197646]
[1728049041977,0.003,61827.0,61809.0,0.24197646]
[1728049041978,0.28054574,61822.0,61809.0,0.24197646]
[1728049042240,0.323546,61815.0,61810.0,0.00937022]
[1728049042518,0.44232874,61811.0,61810.0,0.00937022]
[1728049042749,0.05015727,61811.0,61807.0,0.161792]
[1728049043059,0.05015727,61811.0,61803.0,0.00164]
[1728049043060,0.03623551,61810.0,61803.0,0.00164]
[1728049043327,0.03623551,61810.0,61785.0,0.005]
[1728049043328,0.16183,61793.0,61787.0,0.001638]
[1728049043577,0.53812737,61793.0,61787.0,0.001638]
[1728049043809,0.66745929,61793.0,61787.0,0.001638]
[1728049044041,0.9712917,61793.0,61787.0,0.001638]
[1728049044339,0.95953101,61793.0,61787.0,0.001638]
[1728049044507,0.9962452,61793.0,61787.0,0.001638]
[1728049044730,1.0102452,61793.0,61787.0,0.001638]
[1728049045185,1.03143057,61793.0,61787.0,0.001638]
[1728049045411,0.98580022,61793.0,61787.0,0.001638]
[1728049045653,1.02231463,61793.0,61787.0,0.001638]
[1728049045896,1.00165185,61793.0,61787.0,0.001638]
[1728049046117,0.98765185,61793.0,61787.0,0.001638]
[1728049046338,1.00165185,61793.0,61787.0,0.001638]
[1728049046563,0.97365185,61793.0,61787.0,0.001638]
[1728049047031,0.98765185,61793.0,61787.0,0.001638]
[1728049047256,1.01014895,61793.0,61787.0,0.001638]
[1728049047504,1.00829732,61793.0,61787.0,0.001638]
[1728049047761,0.97180022,61793.0,61787.0,0.001638]
[1728049047968,0.93230373,61793.0,61787.0,0.001638]
[1728049048221,0.96221102,61793.0,61787.0,0.001638]
[1728049048787,0.94821102,61793.0,61787.0,0.001638]
[1728049048958,0.43960201,61793.0,61787.0,0.001638]
[1728049049184,0.88350373,61793.0,61787.0,0.001638]
[1728049049415,0.85735536,61793.0,61787.0,0.001638]
[1728049049631,0.88535536,61793.0,61787.0,0.001638]
[1728049049872,0.87135536,61793.0,61787.0,0.001638]
[1728049050313,0.88535536,61793.0,61787.0,0.001638]
[1728049050537,0.87135536,61793.0,61787.0,0.001638]
[1728049050834,0.88535536,61793.0,61787.0,0.001638]
[1728049051058,0.89487985,61793.0,61787.0,0.001638]
[1728049051518,0.90887985,61793.0,61787.0,0.001638]
[1728049052018,0.90887985,61793.0,61788.0,0.323685]
[1728049052019,0.03937612,61793.0,61788.0,0.323685]
[1728049052236,0.03937612,61793.0,61792.0,0.162233]
[1728049052237,0.05337612,61793.0,61792.0,0.162233]
[1728049052487,0.05337612,61793.0,61792.0,0.17179905]
[1728049052701,0.05337612,61793.0,61792.0,0.17194742]
[1728049052702,0.02537612,61793.0,61792.0,0.17194742]
[1728049052927,0.03937612,61793.0,61792.0,0.17179905]
[1728049053156,0.03937612,61793.0,61792.0,0.17194742]
[1728049053587,0.04137612,61793.0,61792.0,0.17194742]
[1728049054124,0.04137612,61793.0,61792.0,0.17358942]
[1728049054266,0.03737612,61793.0,61792.0,0.17358942]
[1728049054498,0.02537612,61793.0,61792.0,0.17358942]
[1728049054738,0.03437612,61793.0,61792.0,0.17344105]
[1728049055207,0.02537612,61793.0,61792.0,0.17344105]
[1728049056217,0.02537612,61793.0,61792.0,0.27358942]
[1728049056405,0.5604,61808.0,61792.0,0.27358942]
[1728049056406,0.47,61808.0,61807.0,0.16194137]
[1728049056617,0.24197646,61810.0,61809.0,0.161788]
[1728049056868,0.47,61823.0,61807.0,0.33388117]
[1728049057102,0.24197646,61829.0,61821.0,0.161757]
[1728049057354,0.24197646,61829.0,61821.0,0.16190537]
[1728049057570,0.0253606,61822.0,61821.0,0.17189892]
[1728049057808,0.0253606,61822.0,61821.0,0.27189892]
[1728049058740,0.0273606,61822.0,61821.0,0.27189892]
[1728049058971,0.0273606,61822.0,61821.0,0.17175055]
[1728049059200,0.0273606,61822.0,61821.0,0.00999355]
[1728049059427,0.07662066,61822.0,61821.0,0.17175055]
[1728049059661,0.0253606,61822.0,61821.0,0.161757]
[1728049059888,0.0253606,61822.0,61821.0,0.17175055]
[1728049059889,0.0263606,61822.0,61821.0,0.17175055]
[1728049060172,0.0253606,61822.0,61821.0,0.27175055]
[1728049060837,0.0253606,61822.0,61821.0,0.27189892]
[1728049061084,0.0283606,61822.0,61821.0,0.27189892]
[1728049061313,0.0283606,61822.0,61821.0,0.00999355]
[1728049061565,0.07706951,61822.0,61821.0,0.00999355]
[1728049061798,0.07706951,61822.0,61814.0,0.00014837]
[1728049061799,0.13730126,61822.0,61814.0,0.00014837]
[1728049062058,0.13730126,61822.0,61788.0,0.323682]
[1728049062059,0.20822364,61822.0,61821.0,0.00999355]
[1728049062354,0.0253606,61822.0,61812.0,0.00014837]
[1728049062610,0.0253606,61822.0,61809.0,0.323575]
[1728049062611,0.323525,61819.0,61810.0,0.10014837]
[1728049062816,0.14686994,61821.0,61813.0,0.01008054]
[1728049062817,0.161775,61815.0,61813.0,0.01008054]
[1728049063047,0.161775,61815.0,61800.0,0.24197646]
[1728049063048,0.29167266,61814.0,61798.0,0.00014837]
[1728049063301,0.161781,61812.0,61808.0,0.16179]
[1728049063501,0.03558118,61814.0,61804.0,0.00014837]
[1728049063502,0.161787,61810.0,61807.0,0.161793]
[1728049063735,0.31507647,61817.0,61808.0,0.161791]
[1728049063736,0.07301421,61809.0,61808.0,0.161791]
[1728049063956,0.05041597,61809.0,61808.0,0.161791]
[1728049064192,0.0367427,61809.0,61808.0,0.161791]
[1728049064418,0.161777,61814.0,61809.0,0.161787]
[1728049064697,0.07272312,61813.0,61805.0,0.323595]
[1728049064892,0.07272312,61813.0,61804.0,0.00014837]
[1728049064893,0.161791,61808.0,61804.0,0.1618]
[1728049065125,0.0253643,61809.0,61808.0,0.161791]
[1728049066061,0.06219621,61809.0,61808.0,0.16193937]
[1728049066298,0.06219621,61809.0,61808.0,0.16293937]
[1728049066522,0.08485864,61809.0,61808.0,0.16293937]
[1728049066805,0.09902266,61809.0,61808.0,0.16193937]
[1728049067013,0.06219621,61809.0,61808.0,0.26193937]
[1728049067236,0.03683191,61809.0,61808.0,0.42712608]
[1728049068701,0.03783191,61809.0,61808.0,0.42712608]
[1728049068921,0.03783191,61809.0,61808.0,0.42512608]
[1728049069404,0.03783191,61809.0,61808.0,0.42812608]
[1728049069626,0.03783191,61809.0,61808.0,0.42512608]
[1728049069853,0.03883191,61809.0,61808.0,0.44026101]
[1728049070089,0.06319247,61809.0,61808.0,0.44026101]
[1728049070570,0.06419247,61809.0,61808.0,0.44026101]
[1728049071028,0.06419247,61809.0,61808.0,0.91517701]
[1728049071250,0.03883191,61809.0,61808.0,0.46326101]
[1728049071749,0.03883191,61809.0,61808.0,0.44026101]
[1728049071940,0.03783191,61809.0,61808.0,0.44026101]
[1728049072172,0.03683191,61809.0,61808.0,0.43526101]
[1728049072684,0.03683191,61809.0,61808.0,0.44026101]
[1728049072685,0.03783191,61809.0,61808.0,0.44026101]
[1728049072899,0.03783191,61809.0,61808.0,0.43526101]
[1728049073135,0.03883191,61809.0,61808.0,0.44026101]
[1728049073360,0.03783191,61809.0,61808.0,0.44526101]
[1728049073639,0.03883191,61809.0,61808.0,0.45026101]
[1728049073869,0.03883191,61809.0,61808.0,0.44026101]
[1728049073870,0.03783191,61809.0,61808.0,0.44026101]
[1728049074107,0.03783191,61809.0,61808.0,0.2870743]
[1728049074108,0.03883191,61809.0,61808.0,0.2870743]
[1728049074591,0.03783191,61809.0,61808.0,0.2770743]
[1728049074824,0.03683191,61809.0,61808.0,0.2720743]
[1728049075083,0.03683191,61809.0,61808.0,0.2830743]
[1728049075385,0.03683191,61809.0,61808.0,0.03513493]
[1728049075560,0.05101644,61809.0,61808.0,0.02113493]
[1728049075788,0.07687216,61809.0,61808.0,0.19092593]
[1728049076042,0.03687921,61809.0,61808.0,0.18292593]
[1728049076315,0.03687921,61809.0,61808.0,0.01013493]
[1728049076587,0.03687921,61809.0,61808.0,0.02113493]
[1728049076797,0.09163754,61809.0,61804.0,0.323601]
[1728049077018,0.09163754,61809.0,61807.0,0.161793]
[1728049077256,0.09263754,61809.0,61808.0,0.01]
[1728049077493,0.02368747,61809.0,61808.0,0.18188599]
[1728049077724,0.02368747,61809.0,61808.0,0.161791]
[1728049077725,0.01417967,61809.0,61808.0,0.161791]
[1728049077952,0.01717967,61809.0,61808.0,0.17188599]
[1728049078659,0.04068914,61809.0,61808.0,0.17188599]
[1728049079219,0.62818405,61809.0,61808.0,0.01009499]
[1728049079525,0.45839605,61809.0,61792.0,0.002042]
[1728049079693,0.45839605,61809.0,61793.0,0.323658]
[1728049079694,0.07382255,61808.0,61793.0,0.323658]
[1728049079921,0.323616,61802.0,61792.0,0.002042]
[1728049080162,0.161812,61801.0,61799.0,0.0101929]
[1728049080384,0.03686714,61800.0,61798.0,0.163459]
[1728049080603,0.01417967,61799.0,61798.0,0.16446]
[1728049081384,0.01417967,61799.0,61798.0,0.42779508]
[1728049081622,0.02968747,61801.0,61800.0,0.16196037]
[1728049081623,0.007,61801.0,61800.0,0.16196037]
[1728049081899,0.04391235,61801.0,61800.0,0.42514708]
[1728049082257,0.04391235,61801.0,61800.0,0.45014708]
[1728049082258,6e-08,61801.0,61800.0,0.45014708]
[1728049082434,0.24279846,61809.0,61808.0,0.28493937]
[1728049082661,0.24279846,61809.0,61808.0,0.70614961]
[1728049082916,0.000822,61809.0,61808.0,0.72914961]
[1728049083416,0.000822,61809.0,61808.0,0.70614961]
[1728049083672,0.000822,61809.0,61808.0,0.275791]
[1728049083673,0.001822,61809.0,61808.0,0.275791]
[1728049083937,0.001822,61809.0,61808.0,0.266791]
[1728049084185,0.001822,61809.0,61808.0,0.261791]
[1728049084186,0.000822,61809.0,61808.0,0.261791]
[1728049084420,0.000822,61809.0,61808.0,0.26193937]
[1728049084681,0.001822,61809.0,61808.0,0.43012608]
[1728049084907,0.001822,61809.0,61808.0,0.27703436]
[1728049085140,0.001822,61809.0,61808.0,0.29003436]
[1728049085616,0.001822,61809.0,61808.0,0.90552692]
[1728049085840,0.000822,61809.0,61808.0,0.90052692]
[1728049086065,0.000822,61809.0,61808.0,0.89152692]
[1728049086299,0.000822,61809.0,61808.0,0.89452692]
[1728049086553,0.000822,61809.0,61808.0,0.88752692]
[1728049086994,0.001822,61809.0,61808.0,0.30003436]
[1728049087521,0.02446154,61809.0,61808.0,0.30003436]
[1728049087758,0.02718269,61809.0,61808.0,0.30003436]
[1728049088208,0.02718269,61809.0,61808.0,0.28588599]
[1728049088430,0.02718269,61809.0,61808.0,0.28888599]
[1728049088899,0.04880983,61809.0,61808.0,0.01009499]
[1728049088994,0.19994776,61809.0,61808.0,0.01009499]
[1728049089191,0.36273576,61809.0,61808.0,0.012]
[1728049089428,0.20094776,61809.0,61808.0,0.01809499]
[1728049089691,0.20094776,61809.0,61808.0,0.01009499]
[1728049089692,0.19994776,61809.0,61808.0,0.01009499]
[1728049089947,0.45253576,61809.0,61808.0,0.01109499]
[1728049090174,0.161813,61800.0,61796.0,0.161822]
[1728049090500,0.02262714,61799.0,61797.0,0.00014837]
[1728049090731,0.14933722,61808.0,61806.0,0.161796]
[1728049090732,0.27893187,61808.0,61806.0,0.161796]
[1728049090953,0.27893187,61808.0,61807.0,0.161793]
[1728049091200,0.27893187,61808.0,61806.0,0.161796]
[1728049091201,0.03705539,61807.0,61806.0,0.161796]
[1728049091460,0.03705539,61807.0,61797.0,0.00014837]
[1728049091461,0.05969804,61807.0,61802.0,0.323612]
[1728049091675,0.10549071,61806.0,61803.0,0.161803]
[1728049091932,0.02264265,61805.0,61797.0,0.00014837]
[1728049092155,0.02736555,61808.0,61807.0,0.161793]
[1728049092400,0.02536555,61808.0,61807.0,0.16194137]
[1728049092624,0.04802269,61808.0,61807.0,0.16194137]
[1728049094407,0.03951247,61808.0,61807.0,0.26194137]
[1728049094643,0.01414692,61808.0,61807.0,0.26194137]
[1728049095126,0.000822,61809.0,61808.0,0.16193937]
[1728049095356,0.000822,61809.0,61808.0,0.26193937]
[1728049095575,0.01498283,61809.0,61808.0,0.26193937]
[1728049095869,0.01498283,61809.0,61808.0,0.42512608]
[1728049095870,0.000822,61809.0,61808.0,0.42512608]
[1728049096135,0.000822,61809.0,61808.0,0.44812608]
[1728049096341,0.001822,61809.0,61808.0,0.46147369]
[1728049096629,0.001822,61809.0,61808.0,0.56829169]
[1728049096881,0.000822,61809.0,61808.0,0.42512608]
[1728049097581,0.000822,61809.0,61808.0,0.44812608]
[1728049097789,0.000822,61809.0,61808.0,0.45612608]
[1728049098030,0.000822,61809.0,61808.0,0.55105108]
[1728049098248,0.001822,61809.0,61808.0,0.56705108]
[1728049098490,0.001822,61809.0,61808.0,0.47612608]
[1728049098786,0.000822,61809.0,61808.0,0.44812608]
[1728049099025,0.001822,61809.0,61808.0,0.47812608]
[1728049099272,0.24197646,61832.0,61808.0,0.47812608]
[1728049099273,0.24197646,61825.0,61821.0,0.28490537]
[1728049099503,0.24197646,61825.0,61821.0,0.71421122]
[1728049099757,0.24197646,61825.0,61821.0,0.28490537]
[1728049099949,0.24197646,61825.0,61821.0,0.27302753]
[1728049101101,0.025355,61823.0,61821.0,0.27302753]
[1728049101548,0.025355,61823.0,61821.0,0.28602753]
[1728049101803,0.025355,61823.0,61821.0,0.46221424]
[1728049102030,0.24197646,61832.0,61821.0,0.46221424]
[1728049102221,0.24197646,61832.0,61821.0,0.44921424]
[1728049102453,0.24197646,61832.0,61821.0,0.43621424]
[1728049102594,0.24197646,61832.0,61821.0,0.45021424]
[1728049102792,0.24197646,61832.0,61821.0,0.46948206]
[1728049103038,0.24197646,61832.0,61821.0,0.45548206]
[1728049103259,0.24197646,61839.0,61821.0,0.47971528]
[1728049103479,0.24197646,61832.0,61821.0,0.47971528]
[1728049103687,0.24197646,61832.0,61821.0,0.48171528]
[1728049103870,0.24197646,61832.0,61821.0,0.55861528]
[1728049104073,0.24197646,61832.0,61821.0,0.54461528]
[1728049104338,1e-06,61822.0,61821.0,0.57761528]
[1728049104790,1e-06,61822.0,61821.0,0.54961528]
[1728049105012,1e-06,61822.0,61821.0,0.56561528]
[1728049105245,0.02535214,61843.0,61842.0,0.16185037]
[1728049105450,0.0141456,61843.0,61842.0,0.26185037]
[1728049105674,0.0141456,61843.0,61842.0,0.26297373]
[1728049106030,0.0141456,61843.0,61842.0,0.85546629]
[1728049106147,0.02535189,61847.0,61846.0,0.26183937]
[1728049106356,0.02535189,61847.0,61846.0,0.42502608]
[1728049106568,0.24197646,61853.0,61852.0,0.26182437]
[1728049106830,0.26433829,61853.0,61852.0,0.26289544]
[1728049107029,0.03633797,61853.0,61852.0,0.26289544]
[1728049107342,0.02236183,61853.0,61852.0,0.26289544]
[1728049107551,0.03633797,61853.0,61852.0,0.26289544]
[1728049107924,0.01397614,61853.0,61852.0,0.70668207]
[1728049108202,0.01397614,61853.0,61852.0,0.44008215]
[1728049108420,0.01397614,61853.0,61852.0,0.45408215]
[1728049109338,0.01397614,61853.0,61852.0,0.29089544]
[1728049109811,0.01397614,61853.0,61852.0,0.02907107]
[1728049110028,0.25609367,61853.0,61852.0,0.02907107]
[1728049110235,0.02232764,61853.0,61852.0,0.02907107]
[1728049110697,0.02232764,61853.0,61852.0,0.50009907]
[1728049110929,0.03630378,61853.0,61852.0,0.48824744]
[1728049111163,0.24197646,61858.0,61857.0,0.161663]
[1728049111408,0.27828081,61858.0,61857.0,0.16181137]
[1728049111643,0.27828081,61858.0,61853.0,0.32349337]
[1728049111839,0.40363646,61858.0,61857.0,0.00104493]
[1728049112113,0.40363646,61858.0,61857.0,0.01258073]
[1728049112114,0.03630395,61858.0,61857.0,0.01258073]
[1728049112343,0.323331,61857.0,61851.0,0.1]
[1728049112622,0.38998624,61856.0,61848.0,0.00014837]
[1728049112798,0.161675,61853.0,61849.0,0.161683]
[1728049113033,0.35368429,61856.0,61850.0,0.323362]
[1728049113286,0.19796677,61855.0,61851.0,0.161678]
[1728049113491,0.03629777,61854.0,61851.0,0.323355]
[1728049113710,0.03629777,61853.0,61852.0,0.161675]
[1728049113938,0.03629777,61853.0,61848.0,0.323373]
[1728049114215,0.06504238,61854.0,61852.0,0.161676]
[1728049114398,0.03628449,61853.0,61851.0,0.485031]
[1728049114611,0.02534601,61852.0,61850.0,0.32336]
[1728049114821,0.02534601,61852.0,61851.0,0.161678]
[1728049115044,0.02534601,61852.0,61851.0,0.16182637]
[1728049115273,0.03930158,61852.0,61851.0,0.16182637]
[1728049115475,0.03930158,61852.0,61851.0,0.16290267]
[1728049116198,0.03930158,61852.0,61851.0,0.16490267]
[1728049116422,0.02534601,61852.0,61851.0,0.16490267]
[1728049116620,0.02534601,61852.0,61851.0,0.26490267]
[1728049116621,0.03929609,61852.0,61851.0,0.26490267]
[1728049117077,0.01395008,61852.0,61851.0,0.26490267]
[1728049117308,0.000821,61858.0,61851.0,0.26490267]
[1728049117309,0.000821,61858.0,61857.0,0.16181137]
[1728049117527,0.01477476,61858.0,61857.0,0.54241129]
[1728049118212,0.01477476,61858.0,61857.0,0.705598]
[1728049118971,0.000821,61858.0,61857.0,0.71964293]
[1728049119203,0.000821,61858.0,61857.0,0.72764293]
[1728049119852,0.000821,61858.0,61857.0,0.71664293]
[1728049120127,0.01477909,61858.0,61857.0,0.71664293]
[1728049120633,0.01477909,61858.0,61857.0,0.70664293]
[1728049120848,0.01477909,61858.0,61857.0,0.72064293]
[1728049121092,0.01477909,61858.0,61857.0,0.2908563]
[1728049121334,0.03714067,61858.0,61857.0,0.2768563]
[1728049121638,0.03714067,61858.0,61857.0,0.2908563]
[1728049121820,0.03714067,61858.0,61857.0,0.2768563]
[1728049122062,0.03714067,61858.0,61857.0,0.44004301]
[1728049122063,0.01477909,61858.0,61857.0,0.44004301]
[1728049122309,0.01477909,61858.0,61857.0,0.44904301]
[1728049122544,0.03715186,61858.0,61857.0,0.44904301]
[1728049122784,0.03715186,61858.0,61857.0,0.47604301]
[1728049123308,0.03715186,61858.0,61857.0,0.45304301]
[1728049123564,0.03715186,61858.0,61857.0,0.2898563]
[1728049124012,0.03715186,61858.0,61857.0,0.26270793]
[1728049124267,0.03715186,61858.0,61857.0,0.2898563]
[1728049124501,0.03715186,61858.0,61857.0,0.71964293]
[1728049124737,0.03715186,61858.0,61857.0,0.71064293]
[1728049125007,0.03715186,61858.0,61857.0,0.26670793]
[1728049125237,0.03715186,61858.0,61857.0,0.27070793]
[1728049125473,0.03715186,61858.0,61857.0,0.00904493]
[1728049125708,0.03648673,61858.0,61857.0,0.00104493]
[1728049125969,0.03648673,61858.0,61857.0,0.12904493]
[1728049126443,0.03648673,61858.0,61857.0,0.29070793]
[1728049126682,0.06182985,61858.0,61857.0,0.29070793]
[1728049127164,0.06182985,61858.0,61857.0,0.26270793]
[1728049127447,0.06182985,61858.0,61857.0,0.26570793]
[1728049127685,0.06182985,61858.0,61857.0,0.26770793]
[1728049127974,0.03648673,61858.0,61857.0,0.26770793]
[1728049129872,0.03666169,61858.0,61857.0,0.26770793]
[1728049130114,0.03666169,61858.0,61857.0,0.27945123]
[1728049130582,0.03666169,61858.0,61857.0,0.2795996]
[1728049130822,0.03666169,61858.0,61857.0,0.27945123]
[1728049131142,0.27350051,61858.0,61857.0,0.01778823]
[1728049131324,0.29884438,61858.0,61857.0,0.0167433]
[1728049131565,0.27350051,61858.0,61857.0,0.005]
[1728049131791,0.161673,61853.0,61852.0,0.032529]
[1728049132039,0.06705214,61853.0,61852.0,0.032529]
[1728049132370,0.03650582,61853.0,61852.0,0.194205]
[1728049132539,0.03650582,61853.0,61852.0,0.19527607]
[1728049134392,0.03650582,61853.0,61852.0,0.19927607]
[1728049134569,0.04250582,61853.0,61852.0,0.20027607]
[1728049134803,0.04250582,61853.0,61852.0,0.19627607]
[1728049135059,0.03650582,61853.0,61852.0,0.19527607]
[1728049135266,0.03650582,61853.0,61852.0,0.20727607]
[1728049135693,0.06185104,61853.0,61852.0,0.20727607]
[1728049135920,0.06185104,61853.0,61852.0,0.20742444]
[1728049136388,0.06185104,61853.0,61852.0,0.04560007]
[1728049136626,0.25407036,61853.0,61852.0,0.04560007]
[1728049136846,0.21756454,61853.0,61852.0,0.04560007]
[1728049137066,0.06196134,61853.0,61852.0,0.03960007]
[1728049137338,0.06896134,61853.0,61852.0,0.04060007]
[1728049137609,0.06896134,61853.0,61852.0,0.03460007]
[1728049137769,0.07496134,61853.0,61852.0,0.19627607]
[1728049137989,0.04261612,61853.0,61852.0,0.03360007]
[1728049138210,0.20428912,61853.0,61852.0,0.03460007]
[1728049138434,0.04261612,61853.0,61852.0,0.03560007]
[1728049138652,0.03661612,61853.0,61852.0,0.03460007]
[1728049138943,0.03661612,61853.0,61852.0,0.19827607]
[1728049139150,0.03661612,61853.0,61852.0,0.19991807]
[1728049139349,0.03661484,61853.0,61852.0,0.03824207]
[1728049139674,0.03661484,61853.0,61852.0,0.03724207]
[1728049139804,0.03661484,61853.0,61852.0,0.03924207]
[1728049140028,0.03661484,61853.0,61852.0,0.20091807]
[1728049140245,0.03661484,61853.0,61852.0,0.03924207]
[1728049140465,0.03661484,61853.0,61852.0,0.20091807]
[1728049140925,0.22883416,61853.0,61852.0,0.03724207]
[1728049141180,0.23583416,61853.0,61852.0,0.03624207]
[1728049141412,0.04361484,61853.0,61852.0,0.196847]
[1728049141787,0.04361484,61853.0,61852.0,0.20971568]
[1728049142011,0.04361484,61853.0,61852.0,0.75350231]
[1728049142012,0.007,61853.0,61852.0,0.75350231]
[1728049142215,0.007,61853.0,61852.0,0.77750231]
[1728049142216,0.04961243,61853.0,61852.0,0.77750231]
[1728049142516,0.04008817,61853.0,61852.0,0.90296531]
[1728049142903,0.04008817,61853.0,61852.0,0.98216531]
[1728049143033,0.00015587,61858.0,61857.0,0.56526292]
[1728049143235,0.00015587,61858.0,61857.0,1.13037663]
[1728049143485,0.00015587,61858.0,61857.0,0.72844963]
[1728049143726,0.00015587,61858.0,61857.0,0.42484971]
[1728049143964,0.00015587,61858.0,61857.0,0.261663]
[1728049144438,0.00115587,61858.0,61857.0,0.289663]
[1728049144688,0.00115587,61858.0,61857.0,0.43884971]
[1728049144933,0.00115587,61858.0,61857.0,0.48759301]
[1728049145165,0.00115587,61858.0,61857.0,0.47359301]
[1728049145389,0.00115587,61858.0,61857.0,1.14425501]
[1728049145620,0.00015587,61858.0,61857.0,1.13025501]
[1728049145840,0.00015587,61858.0,61857.0,1.13725501]
[1728049146076,0.00015587,61858.0,61857.0,1.14225501]
[1728049146280,0.00015587,61858.0,61857.0,0.55239301]
[1728049146523,0.00015587,61858.0,61857.0,0.55339301]
[1728049146776,0.00015587,61858.0,61857.0,0.66271501]
[1728049147203,0.00015587,61858.0,61857.0,0.70353101]
[1728049147417,0.00015587,61858.0,61857.0,0.71753101]
[1728049147652,0.00015587,61858.0,61857.0,0.70353101]
[1728049147881,0.00015587,61858.0,61857.0,0.71753101]
[1728049148838,0.00015587,61858.0,61857.0,0.71767938]
[1728049149085,0.00015587,61858.0,61857.0,0.70367938]
[1728049149559,0.00015587,61858.0,61857.0,0.71767938]
[1728049149767,0.07268452,61876.0,61857.0,0.71767938]
[1728049149768,0.0969127,61880.0,61878.0,0.005]
[1728049150046,0.24197646,61887.0,61886.0,0.261587]
[1728049150288,0.24197646,61887.0,61886.0,0.68092792]
[1728049150531,0.24197646,61887.0,61886.0,0.69235644]
[1728049150802,0.000819,61891.0,61890.0,0.161576]
[1728049151040,0.000819,61891.0,61890.0,0.261576]
[1728049151277,0.000819,61891.0,61890.0,0.43614783]
[1728049151975,0.000819,61891.0,61890.0,0.45914783]
[1728049152445,0.000819,61891.0,61890.0,0.46445816]
[1728049152923,0.000819,61891.0,61890.0,0.47845816]
[1728049153411,0.000819,61891.0,61890.0,0.44145816]